[Event "Titled Tuesday Blitz August 31 2021"]
[White "Nilsen, Tobias Lang"]
[Black "Schmakel, Sam"]
[WhiteFideId "1521624"]
[BlackFideId "2039311"]
[WhiteElo "1975"]
[BlackElo "2356"]
[Result "0-1"]
[Round "04"]
[TimeControl "180+1"]
[Date "2021.08.31"]
[WhiteClock "0:00:23"]
[BlackClock "0:00:11"]

1. e4 {[%clk 0:03:00]}  e5 {[%clk 0:02:59]} 2. Nf3 {[%clk 0:03:01]}  Nc6 {[%clk 0:03:00]} 3. Bb5 {[%clk 0:03:01]}  Nf6 {[%clk 0:02:59]} 4. O-O {[%clk 0:03:01]}  Nxe4 {[%clk 0:02:59]} 5. Re1 {[%clk 0:03:00]}  Nd6 {[%clk 0:03:00]} 6. Nxe5 {[%clk 0:03:00]}  Be7 {[%clk 0:03:00]} 7. Bf1 {[%clk 0:02:59]}  Nxe5 {[%clk 0:03:00]} 8. Rxe5 {[%clk 0:03:00]}  O-O {[%clk 0:03:01]} 9. d4 {[%clk 0:03:00]}  Bf6 {[%clk 0:03:01]} 10. Re1 {[%clk 0:03:01]}  Re8 {[%clk 0:02:57]} 11. Rxe8+ {[%clk 0:02:57]}  Nxe8 {[%clk 0:02:58]} 12. c4 {[%clk 0:02:50]}  d5 {[%clk 0:02:43]} 13. Be3 {[%clk 0:02:47]}  dxc4 {[%clk 0:02:41]} 14. Bxc4 {[%clk 0:02:47]}  Nd6 {[%clk 0:02:41]} 15. Bb3 {[%clk 0:02:46]}  Nf5 {[%clk 0:02:38]} 16. Nc3 {[%clk 0:02:42]}  Bxd4 {[%clk 0:01:54]} 17. Nd5 {[%clk 0:02:23]}  Bxe3 {[%clk 0:01:15]} 18. Nxe3 {[%clk 0:02:21]}  Nd4 {[%clk 0:00:53]} 19. Bd5 {[%clk 0:02:12]}  c5 {[%clk 0:00:48]} 20. Rc1 {[%clk 0:02:07]}  Ne6 {[%clk 0:00:30]} 21. Qb3 {[%clk 0:01:55]}  Rb8 {[%clk 0:00:28]} 22. Qa4 {[%clk 0:01:52]}  a6 {[%clk 0:00:22]} 23. Qe4 {[%clk 0:01:38]}  b6 {[%clk 0:00:20]} 24. Rd1 {[%clk 0:01:37]}  Qf6 {[%clk 0:00:15]} 25. b3 {[%clk 0:01:23]}  Bd7 {[%clk 0:00:10]} 26. Nc4 {[%clk 0:01:20]}  Nd4 {[%clk 0:00:05]} 27. Ne5 {[%clk 0:01:16]}  Be6 {[%clk 0:00:05]} 28. Bc4 {[%clk 0:00:48]}  b5 {[%clk 0:00:04]} 29. Bf1 {[%clk 0:00:34]}  Re8 {[%clk 0:00:04]} 30. Ng4 {[%clk 0:00:22]}  Qf5 {[%clk 0:00:02]} 31. Qxf5 {[%clk 0:00:22]}  Bxf5 {[%clk 0:00:03]} 32. Ne3 {[%clk 0:00:22]}  Be6 {[%clk 0:00:03]} 33. Rc1 {[%clk 0:00:23]}  Rc8 {[%clk 0:00:03]} 34. f3 {[%clk 0:00:21]}  f6 {[%clk 0:00:04]} 35. Kf2 {[%clk 0:00:22]}  Kf7 {[%clk 0:00:04]} 36. Nd1 {[%clk 0:00:21]}  g5 {[%clk 0:00:05]} 37. Nc3 {[%clk 0:00:20]}  Ke7 {[%clk 0:00:05]} 38. Ne4 {[%clk 0:00:21]}  c4 {[%clk 0:00:05]} 39. bxc4 {[%clk 0:00:21]}  Bxc4 {[%clk 0:00:05]} 40. Ke3 {[%clk 0:00:21]}  Ne6 {[%clk 0:00:05]} 41. Bxc4 {[%clk 0:00:21]}  Rxc4 {[%clk 0:00:05]} 42. Rxc4 {[%clk 0:00:21]}  bxc4 {[%clk 0:00:06]} 43. Nc5 {[%clk 0:00:22]}  Nxc5 {[%clk 0:00:06]} 44. Kd4 {[%clk 0:00:22]}  Kd6 {[%clk 0:00:06]} 45. Kxc4 {[%clk 0:00:23]}  Ne6 {[%clk 0:00:06]} 46. g3 {[%clk 0:00:23]}  h5 {[%clk 0:00:06]} 47. Kd3 {[%clk 0:00:21]}  Kd5 {[%clk 0:00:07]} 48. a3 {[%clk 0:00:21]}  Nd4 {[%clk 0:00:07]} 49. f4 {[%clk 0:00:21]}  g4 {[%clk 0:00:07]} 50. Ke3 {[%clk 0:00:21]}  Nf5+ {[%clk 0:00:06]} 51. Kd3 {[%clk 0:00:20]}  Nd6 {[%clk 0:00:06]} 52. a4 {[%clk 0:00:19]}  f5 {[%clk 0:00:07]} 53. Kc3 {[%clk 0:00:19]}  a5 {[%clk 0:00:07]} 54. Kd3 {[%clk 0:00:19]}  Nc4 {[%clk 0:00:08]} 55. Kc3 {[%clk 0:00:19]}  Nb6 {[%clk 0:00:08]} 56. Kb3 {[%clk 0:00:19]}  Kd4 {[%clk 0:00:09]} 57. Kb2 {[%clk 0:00:19]}  Nxa4+ {[%clk 0:00:09]} 58. Ka3 {[%clk 0:00:20]}  Nc5 {[%clk 0:00:10]} 59. Kb2 {[%clk 0:00:20]}  Ke3 {[%clk 0:00:11]} 60. Kc2 {[%clk 0:00:20]}  a4 {[%clk 0:00:11]} 61. Kd1 {[%clk 0:00:21]}  a3 {[%clk 0:00:11]} 62. Ke1 {[%clk 0:00:21]}  a2 {[%clk 0:00:11]} 63. Kf1 {[%clk 0:00:22]}  a1=Q+ {[%clk 0:00:12]} 64. Kg2 {[%clk 0:00:23]}  Qb2+ {[%clk 0:00:11]} 65. Kf1 {[%clk 0:00:23]}  Qf2# {[%clk 0:00:11]} 0-1


[Site "https://www.chess.com"]

[Event "Titled Tuesday Blitz August 31 2021"]
[White "Ohanyan, Emin"]
[Black "Kozak, Antoni"]
[WhiteFideId "13312022"]
[BlackFideId "21832030"]
[WhiteElo "1809"]
[BlackElo "2289"]
[Result "0-1"]
[Round "04"]
[TimeControl "180+1"]
[Date "2021.08.31"]
[WhiteClock "0:00:07"]
[BlackClock "0:00:14"]

1. e4 {[%clk 0:02:57]}  c6 {[%clk 0:02:55]} 2. Nc3 {[%clk 0:02:56]}  d5 {[%clk 0:02:56]} 3. Nf3 {[%clk 0:02:56]}  a6 {[%clk 0:02:54]} 4. d4 {[%clk 0:02:48]}  Bg4 {[%clk 0:02:52]} 5. h3 {[%clk 0:02:35]}  Bxf3 {[%clk 0:02:51]} 6. Qxf3 {[%clk 0:02:36]}  e6 {[%clk 0:02:49]} 7. Be2 {[%clk 0:02:31]}  Nf6 {[%clk 0:02:46]} 8. Qd3 {[%clk 0:02:16]}  dxe4 {[%clk 0:02:35]} 9. Nxe4 {[%clk 0:02:17]}  Nxe4 {[%clk 0:02:34]} 10. Qxe4 {[%clk 0:02:17]}  Nd7 {[%clk 0:02:34]} 11. c3 {[%clk 0:02:13]}  Bd6 {[%clk 0:02:13]} 12. O-O {[%clk 0:02:11]}  O-O {[%clk 0:02:13]} 13. Bd3 {[%clk 0:02:09]}  Nf6 {[%clk 0:02:12]} 14. Qh4 {[%clk 0:02:09]}  Be7 {[%clk 0:02:09]} 15. Re1 {[%clk 0:01:54]}  g6 {[%clk 0:02:04]} 16. Bh6 {[%clk 0:01:29]}  Re8 {[%clk 0:02:03]} 17. Qg3 {[%clk 0:01:27]}  Bf8 {[%clk 0:01:55]} 18. Bg5 {[%clk 0:01:22]}  Be7 {[%clk 0:01:38]} 19. Qh4 {[%clk 0:01:02]}  Nd5 {[%clk 0:01:34]} 20. Bxe7 {[%clk 0:00:59]}  Qxe7 {[%clk 0:01:33]} 21. Qg4 {[%clk 0:00:59]}  h5 {[%clk 0:01:27]} 22. Qf3 {[%clk 0:00:59]}  Qf6 {[%clk 0:01:26]} 23. Be4 {[%clk 0:00:59]}  Qxf3 {[%clk 0:01:26]} 24. Bxf3 {[%clk 0:01:00]}  Kg7 {[%clk 0:01:24]} 25. Kf1 {[%clk 0:00:59]}  Red8 {[%clk 0:01:23]} 26. a4 {[%clk 0:00:56]}  a5 {[%clk 0:01:19]} 27. Ra3 {[%clk 0:00:55]}  h4 {[%clk 0:01:12]} 28. Rb3 {[%clk 0:00:55]}  Rab8 {[%clk 0:01:12]} 29. Re4 {[%clk 0:00:43]}  g5 {[%clk 0:01:10]} 30. Re5 {[%clk 0:00:43]}  Kf6 {[%clk 0:01:08]} 31. c4 {[%clk 0:00:39]}  Ne7 {[%clk 0:00:58]} 32. Rxa5 {[%clk 0:00:36]}  Rxd4 {[%clk 0:00:58]} 33. Ra7 {[%clk 0:00:36]}  Rxc4 {[%clk 0:00:45]} 34. a5 {[%clk 0:00:36]}  Nf5 {[%clk 0:00:20]} 35. Rbxb7 {[%clk 0:00:25]}  Rxb7 {[%clk 0:00:19]} 36. Rxb7 {[%clk 0:00:26]}  Nd4 {[%clk 0:00:19]} 37. Bd1 {[%clk 0:00:20]}  Rc1 {[%clk 0:00:17]} 38. Ke1 {[%clk 0:00:21]}  Ra1 {[%clk 0:00:18]} 39. Ra7 {[%clk 0:00:18]}  c5 {[%clk 0:00:18]} 40. Ra8 {[%clk 0:00:12]}  Ke5 {[%clk 0:00:18]} 41. Kd2 {[%clk 0:00:12]}  Ra2 {[%clk 0:00:17]} 42. Kc3 {[%clk 0:00:10]}  Ra1 {[%clk 0:00:18]} 43. Kd2 {[%clk 0:00:08]}  Ra2 {[%clk 0:00:17]} 44. a6 {[%clk 0:00:08]}  Rxb2+ {[%clk 0:00:16]} 45. Kc3 {[%clk 0:00:09]}  Ra2 {[%clk 0:00:16]} 46. Kc4 {[%clk 0:00:07]}  Ra5 {[%clk 0:00:14]} 0-1


[Site "https://www.chess.com"]

[Event "Titled Tuesday Blitz August 31 2021"]
[White "Perera Alfonso, Rene Humberto"]
[Black "Papasimakopoulos, Alexandros"]
[WhiteFideId "3514722"]
[BlackFideId "4244125"]
[WhiteElo "2313"]
[BlackElo "2352"]
[Result "1-0"]
[Round "04"]
[TimeControl "180+1"]
[Date "2021.08.31"]
[WhiteClock "0:00:33"]
[BlackClock "0:00:09"]

1. e4 {[%clk 0:03:00]}  e6 {[%clk 0:02:55]} 2. d4 {[%clk 0:02:59]}  d5 {[%clk 0:02:54]} 3. Nc3 {[%clk 0:02:59]}  Bb4 {[%clk 0:02:54]} 4. e5 {[%clk 0:02:59]}  b6 {[%clk 0:02:54]} 5. Qg4 {[%clk 0:02:58]}  Bf8 {[%clk 0:02:52]} 6. Bd2 {[%clk 0:02:58]}  Ne7 {[%clk 0:02:51]} 7. Bd3 {[%clk 0:02:54]}  Ba6 {[%clk 0:02:51]} 8. Qe2 {[%clk 0:02:53]}  Bxd3 {[%clk 0:02:51]} 9. Qxd3 {[%clk 0:02:54]}  c5 {[%clk 0:02:51]} 10. Nce2 {[%clk 0:02:53]}  Nbc6 {[%clk 0:02:43]} 11. c3 {[%clk 0:02:52]}  c4 {[%clk 0:02:43]} 12. Qc2 {[%clk 0:02:51]}  h5 {[%clk 0:02:42]} 13. Nf3 {[%clk 0:02:50]}  Nf5 {[%clk 0:02:42]} 14. O-O {[%clk 0:02:49]}  h4 {[%clk 0:02:39]} 15. h3 {[%clk 0:02:35]}  Be7 {[%clk 0:02:36]} 16. Rfe1 {[%clk 0:02:32]}  b5 {[%clk 0:02:35]} 17. Nh2 {[%clk 0:02:31]}  a5 {[%clk 0:02:34]} 18. Ng4 {[%clk 0:02:29]}  b4 {[%clk 0:02:32]} 19. b3 {[%clk 0:02:25]}  bxc3 {[%clk 0:02:30]} 20. Bxc3 {[%clk 0:02:26]}  cxb3 {[%clk 0:02:24]} 21. axb3 {[%clk 0:02:25]}  O-O {[%clk 0:02:22]} 22. Qd2 {[%clk 0:02:21]}  Qb6 {[%clk 0:02:13]} 23. Rab1 {[%clk 0:02:18]}  Bb4 {[%clk 0:02:12]} 24. Bxb4 {[%clk 0:02:12]}  Qxb4 {[%clk 0:02:06]} 25. Qg5 {[%clk 0:02:03]}  Ncxd4 {[%clk 0:02:03]} 26. Nxd4 {[%clk 0:02:00]}  Qxd4 {[%clk 0:02:03]} 27. Rec1 {[%clk 0:01:44]}  Rfc8 {[%clk 0:01:55]} 28. Nf6+ {[%clk 0:01:38]}  Kh8 {[%clk 0:01:53]} 29. Qh5+ {[%clk 0:01:37]}  Nh6 {[%clk 0:01:53]} 30. Ng4 {[%clk 0:01:37]}  Qf4 {[%clk 0:01:50]} 31. Rxc8+ {[%clk 0:01:37]}  Rxc8 {[%clk 0:01:49]} 32. Nxh6 {[%clk 0:01:36]}  gxh6 {[%clk 0:01:42]} 33. Re1 {[%clk 0:01:24]}  Kg7 {[%clk 0:01:33]} 34. Qe2 {[%clk 0:01:19]}  Rc3 {[%clk 0:01:29]} 35. Qb5 {[%clk 0:01:14]}  Rc1 {[%clk 0:01:26]} 36. Qxa5 {[%clk 0:01:12]}  d4 {[%clk 0:01:20]} 37. Rxc1 {[%clk 0:01:06]}  Qxc1+ {[%clk 0:01:19]} 38. Kh2 {[%clk 0:01:07]}  d3 {[%clk 0:01:20]} 39. Qd8 {[%clk 0:01:07]}  Qf4+ {[%clk 0:01:01]} 40. Kg1 {[%clk 0:01:06]}  d2 {[%clk 0:00:57]} 41. Kf1 {[%clk 0:01:03]}  Kh7 {[%clk 0:00:52]} 42. Qd3+ {[%clk 0:01:01]}  Kg7 {[%clk 0:00:51]} 43. Ke2 {[%clk 0:01:01]}  Qxe5+ {[%clk 0:00:50]} 44. Kxd2 {[%clk 0:01:01]}  Qb2+ {[%clk 0:00:48]} 45. Ke3 {[%clk 0:01:00]}  Qe5+ {[%clk 0:00:35]} 46. Qe4 {[%clk 0:00:57]}  Qc3+ {[%clk 0:00:35]} 47. Qd3 {[%clk 0:00:57]}  Qe1+ {[%clk 0:00:34]} 48. Kf3 {[%clk 0:00:56]}  h5 {[%clk 0:00:22]} 49. Qd4+ {[%clk 0:00:50]}  f6 {[%clk 0:00:20]} 50. Qd7+ {[%clk 0:00:44]}  Kh6 {[%clk 0:00:19]} 51. Qd3 {[%clk 0:00:44]}  Qb4 {[%clk 0:00:10]} 52. Ke2 {[%clk 0:00:36]}  e5 {[%clk 0:00:09]} 53. Qd2+ {[%clk 0:00:33]} 1-0


[Site "https://www.chess.com"]

[Event "Titled Tuesday Blitz August 31 2021"]
[White "Polivanov, Anatoliy"]
[Black "Tokman, Ariel"]
[WhiteFideId "14109468"]
[BlackFideId "117420"]
[WhiteElo "2472"]
[BlackElo "2345"]
[Result "1-0"]
[Round "04"]
[TimeControl "180+1"]
[Date "2021.08.31"]
[WhiteClock "0:00:01"]
[BlackClock "0:00:03"]

1. d4 {[%clk 0:03:00]}  d6 {[%clk 0:03:00]} 2. Bg5 {[%clk 0:03:00]}  Nd7 {[%clk 0:03:00]} 3. e4 {[%clk 0:03:00]}  Ngf6 {[%clk 0:02:59]} 4. Nc3 {[%clk 0:02:59]}  e5 {[%clk 0:02:59]} 5. Nge2 {[%clk 0:02:54]}  Be7 {[%clk 0:02:59]} 6. Qd2 {[%clk 0:02:51]}  c6 {[%clk 0:02:59]} 7. O-O-O {[%clk 0:02:46]}  O-O {[%clk 0:02:58]} 8. f3 {[%clk 0:02:44]}  b5 {[%clk 0:02:50]} 9. Ng3 {[%clk 0:02:33]}  b4 {[%clk 0:02:47]} 10. Nce2 {[%clk 0:02:32]}  d5 {[%clk 0:02:47]} 11. Nf5 {[%clk 0:02:27]}  Bb7 {[%clk 0:01:56]} 12. dxe5 {[%clk 0:02:18]}  Nxe5 {[%clk 0:01:55]} 13. Ned4 {[%clk 0:02:18]}  c5 {[%clk 0:01:44]} 14. Nxe7+ {[%clk 0:02:17]}  Qxe7 {[%clk 0:01:42]} 15. Nf5 {[%clk 0:02:17]}  Qe6 {[%clk 0:01:39]} 16. Qf4 {[%clk 0:01:50]}  Ng6 {[%clk 0:01:31]} 17. Qd6 {[%clk 0:01:31]}  dxe4 {[%clk 0:01:26]} 18. Qxe6 {[%clk 0:01:19]}  fxe6 {[%clk 0:01:26]} 19. Nd6 {[%clk 0:01:17]}  Bd5 {[%clk 0:01:22]} 20. fxe4 {[%clk 0:01:15]}  Nxe4 {[%clk 0:01:17]} 21. Nxe4 {[%clk 0:01:14]}  Bxe4 {[%clk 0:01:17]} 22. Bc4 {[%clk 0:01:14]}  Rae8 {[%clk 0:01:00]} 23. Rhe1 {[%clk 0:01:12]}  Bf5 {[%clk 0:00:43]} 24. h3 {[%clk 0:01:05]}  h6 {[%clk 0:00:39]} 25. Be3 {[%clk 0:00:52]}  Ne5 {[%clk 0:00:37]} 26. Bb3 {[%clk 0:00:41]}  Rc8 {[%clk 0:00:35]} 27. g4 {[%clk 0:00:38]}  c4 {[%clk 0:00:33]} 28. Ba4 {[%clk 0:00:36]}  Bg6 {[%clk 0:00:21]} 29. Bxa7 {[%clk 0:00:23]}  Nf3 {[%clk 0:00:19]} 30. Rxe6 {[%clk 0:00:22]}  Ra8 {[%clk 0:00:14]} 31. Rxg6 {[%clk 0:00:17]}  Rxa7 {[%clk 0:00:13]} 32. Bc6 {[%clk 0:00:13]}  Ne5 {[%clk 0:00:10]} 33. Bd5+ {[%clk 0:00:12]}  Kh7 {[%clk 0:00:10]} 34. Re6 {[%clk 0:00:13]}  Nf3 {[%clk 0:00:04]} 35. Be4+ {[%clk 0:00:10]}  Kh8 {[%clk 0:00:03]} 36. Kb1 {[%clk 0:00:07]}  Ng5 {[%clk 0:00:04]} 37. Re5 {[%clk 0:00:06]}  Nxe4 {[%clk 0:00:03]} 38. Rxe4 {[%clk 0:00:06]}  Rfa8 {[%clk 0:00:03]} 39. a3 {[%clk 0:00:05]}  bxa3 {[%clk 0:00:03]} 40. b3 {[%clk 0:00:03]}  cxb3 {[%clk 0:00:03]} 41. cxb3 {[%clk 0:00:03]}  Rb7 {[%clk 0:00:03]} 42. Ka2 {[%clk 0:00:02]}  Rc8 {[%clk 0:00:03]} 43. Re2 {[%clk 0:00:02]}  Rc3 {[%clk 0:00:03]} 44. Red2 {[%clk 0:00:01]}  Rxh3 {[%clk 0:00:02]} 45. Rd8+ {[%clk 0:00:01]}  Kh7 {[%clk 0:00:03]} 46. R8d3 {[%clk 0:00:02]}  Rh2+ {[%clk 0:00:03]} 47. R1d2 {[%clk 0:00:03]}  Rh1 {[%clk 0:00:03]} 48. Rd1 {[%clk 0:00:02]}  Rh2+ {[%clk 0:00:03]} 49. R1d2 {[%clk 0:00:03]}  Rh4 {[%clk 0:00:04]} 50. Rd4 {[%clk 0:00:03]}  Rh3 {[%clk 0:00:04]} 51. R4d3 {[%clk 0:00:03]}  Rh1 {[%clk 0:00:04]} 52. Rd1 {[%clk 0:00:03]}  Rxd1 {[%clk 0:00:05]} 53. Rxd1 {[%clk 0:00:02]}  Rb4 {[%clk 0:00:06]} 54. Kxa3 {[%clk 0:00:02]}  Rxg4 {[%clk 0:00:05]} 55. b4 {[%clk 0:00:03]}  h5 {[%clk 0:00:06]} 56. b5 {[%clk 0:00:03]}  Rg6 {[%clk 0:00:05]} 57. Rd5 {[%clk 0:00:03]}  Kh6 {[%clk 0:00:06]} 58. Rc5 {[%clk 0:00:02]}  Rg1 {[%clk 0:00:06]} 59. Rc6+ {[%clk 0:00:02]}  g6 {[%clk 0:00:06]} 60. b6 {[%clk 0:00:03]}  h4 {[%clk 0:00:06]} 61. Ka4 {[%clk 0:00:02]}  Rb1 {[%clk 0:00:06]} 62. Rc4 {[%clk 0:00:01]}  Ra1+ {[%clk 0:00:05]} 63. Kb5 {[%clk 0:00:01]}  Rb1+ {[%clk 0:00:05]} 64. Rb4 {[%clk 0:00:01]}  Rc1 {[%clk 0:00:02]} 65. b7 {[%clk 0:00:01]}  Kg5 {[%clk 0:00:03]} 66. b8=Q {[%clk 0:00:01]} 1-0


[Site "https://www.chess.com"]

[Event "Titled Tuesday Blitz August 31 2021"]
[White "Postny, Evgeny"]
[Black "Danielian, Vardan"]
[WhiteFideId "2804344"]
[BlackFideId "13301594"]
[WhiteElo "2521"]
[BlackElo "2522"]
[Result "1-0"]
[Round "04"]
[TimeControl "180+1"]
[Date "2021.08.31"]
[WhiteClock "0:00:05"]
[BlackClock "0:00:08"]

1. e4 {[%clk 0:03:00]}  c5 {[%clk 0:02:57]} 2. Nf3 {[%clk 0:03:01]}  d6 {[%clk 0:02:57]} 3. d4 {[%clk 0:03:01]}  cxd4 {[%clk 0:02:56]} 4. Nxd4 {[%clk 0:03:02]}  Nf6 {[%clk 0:02:57]} 5. Nc3 {[%clk 0:03:02]}  g6 {[%clk 0:02:51]} 6. g3 {[%clk 0:02:56]}  Bg7 {[%clk 0:02:51]} 7. Bg2 {[%clk 0:02:56]}  O-O {[%clk 0:02:51]} 8. O-O {[%clk 0:02:56]}  Bg4 {[%clk 0:02:39]} 9. Nde2 {[%clk 0:02:52]}  Nc6 {[%clk 0:02:38]} 10. h3 {[%clk 0:02:52]}  Bd7 {[%clk 0:02:37]} 11. Kh2 {[%clk 0:02:48]}  Rc8 {[%clk 0:02:28]} 12. Be3 {[%clk 0:02:42]}  a6 {[%clk 0:02:26]} 13. f4 {[%clk 0:02:41]}  b5 {[%clk 0:02:22]} 14. a3 {[%clk 0:02:31]}  Be6 {[%clk 0:01:58]} 15. Nd5 {[%clk 0:02:21]}  Na5 {[%clk 0:01:33]} 16. Bb6 {[%clk 0:02:19]}  Nxd5 {[%clk 0:01:30]} 17. Bxd8 {[%clk 0:02:19]}  Ne3 {[%clk 0:01:31]} 18. Qd3 {[%clk 0:02:07]}  Nxf1+ {[%clk 0:01:27]} 19. Rxf1 {[%clk 0:02:08]}  Rfxd8 {[%clk 0:01:23]} 20. b3 {[%clk 0:02:02]}  Nb7 {[%clk 0:01:12]} 21. f5 {[%clk 0:01:39]}  Nc5 {[%clk 0:01:07]} 22. Qd2 {[%clk 0:01:37]}  Bd7 {[%clk 0:01:04]} 23. Nf4 {[%clk 0:01:35]}  Bc6 {[%clk 0:00:56]} 24. Nd5 {[%clk 0:01:29]}  Bxd5 {[%clk 0:00:55]} 25. exd5 {[%clk 0:01:29]}  Nd7 {[%clk 0:00:53]} 26. Be4 {[%clk 0:01:11]}  Ne5 {[%clk 0:00:42]} 27. Qa5 {[%clk 0:01:09]}  Ra8 {[%clk 0:00:35]} 28. Kg2 {[%clk 0:01:08]}  Rdc8 {[%clk 0:00:35]} 29. Re1 {[%clk 0:01:00]}  Rc5 {[%clk 0:00:33]} 30. Re2 {[%clk 0:00:55]}  Bf6 {[%clk 0:00:33]} 31. h4 {[%clk 0:00:41]}  Kg7 {[%clk 0:00:33]} 32. Kh3 {[%clk 0:00:38]}  h5 {[%clk 0:00:32]} 33. fxg6 {[%clk 0:00:32]}  fxg6 {[%clk 0:00:33]} 34. Kg2 {[%clk 0:00:31]}  Ng4 {[%clk 0:00:30]} 35. Qb6 {[%clk 0:00:23]}  Ne5 {[%clk 0:00:29]} 36. Qb7 {[%clk 0:00:22]}  Rac8 {[%clk 0:00:27]} 37. Qxa6 {[%clk 0:00:20]}  Ng4 {[%clk 0:00:27]} 38. Qa5 {[%clk 0:00:13]}  Rc3 {[%clk 0:00:23]} 39. Qxb5 {[%clk 0:00:12]}  Be5 {[%clk 0:00:23]} 40. Bf3 {[%clk 0:00:11]}  Ne3+ {[%clk 0:00:20]} 41. Kh3 {[%clk 0:00:10]}  Nxc2 {[%clk 0:00:19]} 42. Rxe5 {[%clk 0:00:09]}  dxe5 {[%clk 0:00:19]} 43. Qd7 {[%clk 0:00:08]}  R8c7 {[%clk 0:00:18]} 44. Qe6 {[%clk 0:00:08]}  Nd4 {[%clk 0:00:16]} 45. Qxe5+ {[%clk 0:00:08]}  Kh7 {[%clk 0:00:16]} 46. Qxd4 {[%clk 0:00:08]}  Rxf3 {[%clk 0:00:17]} 47. Qe5 {[%clk 0:00:08]}  Ra7 {[%clk 0:00:11]} 48. b4 {[%clk 0:00:06]}  Raxa3 {[%clk 0:00:11]} 49. Qxe7+ {[%clk 0:00:05]}  Kh6 {[%clk 0:00:10]} 50. Qg5+ {[%clk 0:00:05]}  Kh7 {[%clk 0:00:10]} 51. d6 {[%clk 0:00:06]}  Rf2 {[%clk 0:00:09]} 52. Qe7+ {[%clk 0:00:04]}  Kh6 {[%clk 0:00:08]} 53. Qg5+ {[%clk 0:00:04]}  Kh7 {[%clk 0:00:08]} 54. d7 {[%clk 0:00:04]}  Raa2 {[%clk 0:00:08]} 55. Qe7+ {[%clk 0:00:04]}  Kh6 {[%clk 0:00:08]} 56. Qe3+ {[%clk 0:00:04]}  Kh7 {[%clk 0:00:08]} 57. Qxf2 {[%clk 0:00:05]}  Rxf2 {[%clk 0:00:08]} 58. d8=Q {[%clk 0:00:05]} 1-0


[Site "https://www.chess.com"]

[Event "Titled Tuesday Blitz August 31 2021"]
[White "Potapova, Margarita"]
[Black "Jobava, Baadur"]
[WhiteFideId "14126869"]
[BlackFideId "13601520"]
[WhiteElo "2214"]
[BlackElo "2748"]
[Result "0-1"]
[Round "04"]
[TimeControl "180+1"]
[Date "2021.08.31"]
[WhiteClock "0:00:04"]
[BlackClock "0:01:28"]

1. d4 {[%clk 0:03:00]}  c6 {[%clk 0:03:00]} 2. c4 {[%clk 0:02:59]}  d5 {[%clk 0:03:01]} 3. Nf3 {[%clk 0:02:58]}  Nf6 {[%clk 0:03:01]} 4. g3 {[%clk 0:02:59]}  Bf5 {[%clk 0:03:01]} 5. Nc3 {[%clk 0:02:59]}  e6 {[%clk 0:03:01]} 6. Nh4 {[%clk 0:02:59]}  Be4 {[%clk 0:03:01]} 7. f3 {[%clk 0:02:59]}  Bg6 {[%clk 0:03:01]} 8. Qb3 {[%clk 0:02:57]}  Qc8 {[%clk 0:03:00]} 9. e4 {[%clk 0:02:36]}  dxe4 {[%clk 0:02:55]} 10. Nxg6 {[%clk 0:02:36]}  hxg6 {[%clk 0:02:56]} 11. fxe4 {[%clk 0:02:26]}  e5 {[%clk 0:02:56]} 12. dxe5 {[%clk 0:02:12]}  Ng4 {[%clk 0:02:56]} 13. Bf4 {[%clk 0:02:09]}  Na6 {[%clk 0:02:52]} 14. O-O-O {[%clk 0:01:54]}  Nf2 {[%clk 0:02:47]} 15. Be2 {[%clk 0:01:29]}  Nxh1 {[%clk 0:02:43]} 16. Rxh1 {[%clk 0:01:29]}  Nc5 {[%clk 0:02:43]} 17. Qc2 {[%clk 0:01:28]}  Be7 {[%clk 0:02:43]} 18. h4 {[%clk 0:01:08]}  Qe6 {[%clk 0:02:39]} 19. Nd5 {[%clk 0:01:04]}  cxd5 {[%clk 0:02:36]} 20. cxd5 {[%clk 0:01:00]}  Qb6 {[%clk 0:02:36]} 21. d6 {[%clk 0:01:00]}  Rc8 {[%clk 0:02:20]} 22. Bc4 {[%clk 0:00:54]}  Bd8 {[%clk 0:01:57]} 23. Rf1 {[%clk 0:00:54]}  O-O {[%clk 0:01:57]} 24. Be3 {[%clk 0:00:46]}  Qc6 {[%clk 0:01:48]} 25. Kb1 {[%clk 0:00:06]}  Nxe4 {[%clk 0:01:47]} 26. b3 {[%clk 0:00:02]}  b5 {[%clk 0:01:45]} 27. Bd3 {[%clk 0:00:03]}  Qxc2+ {[%clk 0:01:44]} 28. Bxc2 {[%clk 0:00:04]}  Nxg3 {[%clk 0:01:42]} 29. Rg1 {[%clk 0:00:04]}  Ne2 {[%clk 0:01:41]} 30. Rg2 {[%clk 0:00:03]}  Nc3+ {[%clk 0:01:41]} 31. Kb2 {[%clk 0:00:04]}  Bxh4 {[%clk 0:01:37]} 32. Rg4 {[%clk 0:00:04]}  Be1 {[%clk 0:01:34]} 33. Bxa7 {[%clk 0:00:03]}  Nd5 {[%clk 0:01:28]} 34. Bd4 {[%clk 0:00:03]}  b4 {[%clk 0:01:26]} 35. Be4 {[%clk 0:00:03]}  Bc3+ {[%clk 0:01:27]} 36. Bxc3 {[%clk 0:00:03]}  bxc3+ {[%clk 0:01:27]} 37. Kc2 {[%clk 0:00:03]}  Nb4+ {[%clk 0:01:28]} 38. Kb1 {[%clk 0:00:04]}  c2+ {[%clk 0:01:28]} 0-1


[Site "https://www.chess.com"]